[Event "Croatian 1A League 2022"]
[Site "Porec"]
[Date "2022.09.27"]
[Round "4.15"]
[White "Christiansen, Johan-Sebastian"]
[Black "Palac, Mladen"]
[Result "0-1"]
[ECO "B80"]
[WhiteElo "2583"]
[BlackElo "2516"]
[Annotator "TA"]
[PlyCount "142"]
[EventDate "2022.09.24"]
[EventType "team-tourn"]
[EventCountry "CRO"]
[SourceTitle "playchess.com"]
[Source "ChessBase"]
[SourceQuality "1"]
[TimeControl "40/5400+30:1800+30"]

{[%evp 19,142,-10,0,-8,0,-30,-22,-33,-30,-26,-10,-26,-22,-47,-20,-25,-20,-16,-20,-25,-18,-24,-16,-15,-16,-23,-23,-15,-24,-48,-51,-51,-52,-55,-50,-50,-44,-45,-43,-63,-63,-68,-70,-66,-71,-113,-99,-166,-91,-126,-131,-134,-134,-211,-195,-215,-191,-195,-184,-183,-123,-178,-178,-229,-226,-225,-172,-348,-195,-533,-75,-75,-75,-19,-20,-75,-75,-184,-184,-178,-178,-211,-171,-211,-211,-211,-211,-211,-211,-211,-204,-276,-276,-269,-275,-746,-741,-714,-714,-700,-675,-1006,-994,-3829,-3538,-29969,-1551,-29985,-29967,-29965,-29967,-29970,-29968,-29984,-29985,-29985,-29986,-29986,-29987,-29988,-29989,-29995,-29996,-29997,-425]} 1. e4 {[%emt 0:04:17]} c5 {[%emt 0:00:06]} 2. Nf3 {[%emt 0:00:30]} d6 {[%emt 0:00:02]} 3. d4 {[%emt 0:00:25]} cxd4 {[%emt 0:00:04]} 4. Nxd4 {[%emt 0:00:06]} Nf6 {[%emt 0:00:05]} 5. Nc3 {[%emt 0:00:17]} a6 {[%emt 0:00:01]} 6. Be3 {[%emt 0:00:49]} Ng4 {[%emt 0:00:49]} 7. Bc1 {[%emt 0:01:39]} Nf6 {[%emt 0:00:09]} 8. f3 {[%emt 0:00:58]} e6 {[%emt 0:02:41]} 9. Be3 {[%emt 0:03:23] 9.a3 is more advanced technology.} b5 {[%emt 0:00:07]} 10. Bd3 {[%emt 0:09:27]} Bb7 {[%emt 0:00:59]} 11. O-O {[%emt 0:02:25] B80: Sicilian Scheveningen: 6 g3 and 6 Be3, including English Attack.} Nbd7 {[%emt 0:01:33][%cal Bb8d7,Bd7c5,Bc5d3][%mdl 32]} 12. a3 {[%emt 0:03:23]} Be7 {[%emt 0:04:24]} 13. Qe2 {[%emt 0:00:42] The position is equal.} O-O {[%emt 0:00:21]} 14. Bf2 {[%emt 0:08:12]} Qc7 {[%emt 0:05:26] [#]} 15. Rae1 $146 {[%emt 0:13:45]} ({Predecessor:} 15. Kh1 Rfd8 16. Rg1 Bf8 17. Rad1 Rac8 18. g4 d5 19. exd5 exd5 20. g5 Nh5 21. Nf5 Nf4 22. Qf1 Nxd3 23. Rxd3 {0-1 (30) Matveev,V-Shimanov,A (2220) Russia 2004}) 15... Nc5 {[%emt 0:08:55]} 16. Nd1 {[%emt 0:00:55]} Rfe8 {[%emt 0:05:29]} 17. b4 {[%emt 0:01:51]} Nxd3 {[%emt 0:01:26]} 18. cxd3 {[%emt 0:00:02]} Rac8 {[%emt 0:00:22]} 19. Be3 {[%emt 0:09:23]} (19. Ne3 Qc3 20. Ndc2 d5 $17) 19... d5 {[%emt 0:06:37]} 20. Nf2 {[%emt 0:01:29]} Bd6 {[%emt 0:05:38]} 21. g3 {[%emt 0:00:05]} Nd7 {[%emt 0:07:10]} 22. Rc1 {[%emt 0:01:20]} Qb8 {[%emt 0:00:18]} 23. Nb3 {[%emt 0:03:10]} e5 {[%emt 0:01:04]} 24. Bc5 {[%emt 0:01:47]} (24. Na5 {is more complex.} Ba8 25. Nb3 Rxc1 26. Rxc1 d4 27. Bd2) 24... Nxc5 {[%emt 0:04:19]} 25. Nxc5 {[%emt 0:01:06]} Bxc5 {[%emt 0:05:33]} 26. Rxc5 {[%emt 0:00:39]} Rxc5 {[%emt 0:00:09]} 27. bxc5 {[%emt 0:00:02]} Qc7 {[%emt 0:00:04]} 28. Rc1 {[%emt 0:00:37]} d4 {[%emt 0:02:37]} 29. Ng4 {[%emt 0:03:39]} Bc6 {[%emt 0:03:44]} 30. Qd2 {[%emt 0:00:54]} f6 {[%emt 0:01:11]} 31. h4 {[%emt 0:03:36]} a5 {[%emt 0:04:37]} 32. h5 {[%emt 0:01:27]} h6 $1 {[%emt 0:01:21]} 33. Nh2 {[%emt 0:01:19]} (33. Nf2 $17) 33... Bd7 {[%emt 0:03:14]} ({Black should play} 33... Qf7 $19 34. Rb1 Qxh5) 34. g4 {[%emt 0:03:20]} Be6 {[%emt 0:01:35]} 35. Nf1 {[%emt 0:01:35]} Rb8 {[%emt 0:00:27]} 36. Rb1 {[%emt 0:02:40] Prevents b4.} (36. c6 $17 {is a better defense.}) 36... Kh7 $1 $19 {[%emt 0:04:42]} (36... Qxc5 37. Qxa5 Bd7 38. Rd1 $17) 37. Qc2 {[%emt 0:03:02]} b4 {[%emt 0:04:01]} 38. axb4 {[%emt 0:00:30]} axb4 {[%emt 0:00:01]} (38... Rxb4 39. Nd2 $15) 39. Nd2 {[%emt 0:02:51] Prevents b3.} Rb5 {[%emt 0:00:45]} (39... Qc6 $1 $19 {[%cal Ob4b3] ...b3! is the strong threat.} 40. Nb3 Bxb3 41. Qxb3 (41. Rxb3 $2 Rb5 $19) 41... Qxc5) 40. c6 {[%emt 0:00:00]} (40. Nb3 $17) 40... Rb6 {[%emt 0:00:00]} 41. Qa4 {[%emt 0:23:02]} (41. Nc4 {keeps fighting.} Qxc6 42. Qb3) 41... Rxc6 {[%emt 0:08:58]} (41... Qxc6 42. Qxc6 Rxc6 43. Rxb4) 42. Qxb4 {[%emt 0:03:08]} Rc3 {[%emt 0:00:32] Inhibits Nc4.} 43. Qb5 {[%emt 0:05:48]} (43. Qf8 {might work better.}) 43... Bd7 {[%emt 0:03:55]} (43... Qc8 $142 {[%cal Oe6g4] And now ...Bxg4! would win.} 44. Qb7 Bxg4 $1 {[%mdl 512]} 45. Qxc8 Bxc8) 44. Qa6 $2 {[%emt 0:01:43] [#]} (44. Qb7 {is a better chance.}) 44... Rc1+ $2 {[%emt 0:05:32]} (44... Bxg4 $1 $19 {[%mdl 512] Threatens to win with ...Rc1+.} 45. Nc4 (45. fxg4 $2 Qd7 $19) (45. Nf1 Bxf3) 45... Bc8) 45. Rxc1 $17 {[%emt 0:00:06]} Qxc1+ {[%emt 0:00:01][%mdl 4096] Endgame KQB-KQN} 46. Nf1 {[%emt 0:00:06]} Qb1 {[%emt 0:00:02] Against Qa2} 47. Kg2 {[%emt 0:03:39]} (47. Qc4 $1 $11) 47... Bb5 {[%emt 0:01:51] White is now going downhill.} 48. Qc8 {[%emt 0:00:07] [#]} (48. Qe6 $17) 48... Qa2+ $1 $19 {[%emt 0:03:31]} ({And not} 48... Bxd3 49. Qf5+ Kh8 50. Qc8+ Kh7 51. Qf5+ Kh8 52. Qc8+ Kh7 $11) 49. Kh3 {[%emt 0:00:18]} Bxd3 {[%emt 0:00:01]} 50. Ng3 {[%emt 0:01:04]} Ba6 {[%emt 0:07:18]} 51. Qe8 {[%emt 0:02:38] [#]} Qg8 $1 {[%emt 0:04:41] Active counter play!} 52. Qe7 {[%emt 0:02:12]} Bc8 {[%emt 0:00:37]} 53. Qc7 {[%emt 0:02:31]} Be6 {[%emt 0:02:48]} 54. Kg2 {[%emt 0:01:13]} Qa8 {[%emt 0:00:33]} 55. Qd6 {[%emt 0:00:39]} Qa2+ {[%emt 0:00:18]} 56. Kg1 {[%emt 0:01:02]} Qb3 {[%emt 0:01:51] aiming for ...Bxg4.} 57. Kf2 $2 {[%emt 0:00:13]} (57. Kg2) 57... Qc2+ {[%emt 0:03:40]} ({Avoid the trap} 57... Bc4 $2 58. Qd7 $17) 58. Kg1 {[%emt 0:00:09] [#]} d3 $1 {[%emt 0:02:08]} 59. Nf1 {[%emt 0:00:26] Prevents d2.} Bg8 {[%emt 0:00:29] Strongly threatening ...Qd1.} 60. g5 {[%emt 0:00:38]} fxg5 {[%emt 0:00:43]} 61. Qb4 {[%emt 0:01:40]} Qe2 {[%emt 0:00:28] ( -> ...Bf7)} 62. Nd2 {[%emt 0:00:40]} Be6 {[%emt 0:02:25]} (62... Bf7 $142 63. Nf1 Qxf3 64. Qd2 Bxh5 65. Qe3 Qxe3+ 66. Nxe3 d2 67. Kh1 Bf3+ 68. Kg1 g4 69. Kh2 d1=Q 70. Nxd1 Bxd1 71. Kg3 Bf3 72. Kh4 Kg6 73. Kg3 h5 74. Kh4 Bxe4 75. Kg3 Kf5 76. Kf2 h4 77. Kf1 g3 78. Ke2 g2 79. Kf2 Kg4 80. Kg1 Kf3 81. Kh2 Kf2 82. Kh3 g1=Q 83. Kxh4 Qg6 84. Kh3 Qh5#) 63. Qd6 {[%emt 0:00:21]} Bf7 {[%emt 0:00:13] Black mates.} 64. Qxe5 {[%emt 0:00:23]} Bxh5 {[%emt 0:01:59]} 65. Qa5 {[%emt 0:00:01]} Bf7 {[%emt 0:01:19]} 66. Qf5+ {[%emt 0:00:04]} Bg6 {[%emt 0:00:05]} 67. Qa5 {[%emt 0:00:01]} g4 {[%emt 0:00:27]} 68. fxg4 {[%emt 0:01:05]} Qe1+ {[%emt 0:01:12]} 69. Kh2 {[%emt 0:00:21]} Bxe4 {[%emt 0:00:01]} 70. Kh3 {[%emt 0:00:42]} Qe3+ {[%emt 0:00:12]} 71. Kh2 {[%emt 0:00:09]} Qf2+ {[%emt 0:00:05] Weighted Error Value: White=0.48/Black=0.15 (very precise)} 0-1

[Event "Croatian 1A League 2022"]
[Site "Porec"]
[Date "2022.09.27"]
[Round "4.16"]
[White "Petkov, Vladimir"]
[Black "Martinovic, Sasa"]
[Result "1/2-1/2"]
[ECO "D13"]
[WhiteElo "2451"]
[BlackElo "2546"]
[Annotator "TA"]
[PlyCount "147"]
[EventDate "2022.09.24"]
[EventType "team-tourn"]
[EventCountry "CRO"]
[SourceTitle "playchess.com"]
[Source "ChessBase"]
[SourceQuality "1"]
[TimeControl "40/5400+30:1800+30"]

{[%evp 14,147,11,0,0,0,0,-12,-18,-12,12,0,0,0,-1,-15,-11,-16,-14,-72,-75,-66,-48,-56,-53,-186,-197,-194,-191,-214,-217,-225,-209,-219,-215,-202,-193,-212,-213,-197,-200,-194,-168,-248,-144,-333,-159,-153,-107,-218,-208,-330,-332,-384,-365,-416,-404,-461,-354,-363,-335,-328,-207,-215,-143,-133,-67,-75,-89,-89,-91,-95,-98,-101,-86,-92,-91,-173,-145,-211,-204,-235,-221,-290,-274,-210,-201,-216,-209,-220,-201,-198,-214,-329,-329,-329,-328,-328,-328,-300,0,0,0,0,0,0,0,0,0,0,0,0,0,0,0,0,0,0,0,0,0,0,0,0,0,0,0,0,0,0,0,0,0,0,0,0]} 1. d4 {[%emt 0:00:11]} Nf6 {[%emt 0:00:03]} 2. Nf3 {[%emt 0:00:22]} d5 {[%emt 0:00:12]} 3. c4 {[%emt 0:00:40]} c6 {[%emt 0:00:07]} 4. cxd5 {[%emt 0:03:26]} cxd5 {[%emt 0:00:05]} 5. Nc3 {[%emt 0:00:09]} Nc6 {[%emt 0:00:06]} 6. Bf4 {[%emt 0:00:16]} a6 {[%emt 0:00:06]} 7. e3 {[%emt 0:01:06] 7.Rc1 injects fresh life into this line.} Bg4 {[%emt 0:00:08]} 8. Qb3 {[%emt 0:08:18]} Bxf3 {[%emt 0:00:22] D13: Slav Defence: Exchange variation without ...Bf5.} 9. gxf3 {[%emt 0:00:22]} Na5 {[%emt 0:00:07]} 10. Qc2 {[%emt 0:03:38]} e6 {[%emt 0:02:04]} 11. Bd3 {[%emt 0:02:10]} Bd6 {[%emt 0:07:42]} 12. Bg3 {[%emt 0:00:36]} Rc8 {[%emt 0:01:59]} 13. O-O {[%emt 0:02:01]} O-O {[%emt 0:07:35] [#]} 14. Qe2 $146 {[%emt 0:00:57]} ({Predecessor:} 14. Rfc1 Be7 15. Qd1 Nc4 16. Rc2 Qd7 17. Rac1 Nb6 18. Kg2 Nh5 19. Nb1 Rxc2 20. Rxc2 {½-½ (36) Granda Zuniga,J (2616)-Petrosian,T (2636) Benasque 2011}) 14... Re8 {[%emt 0:05:13]} 15. Rad1 {[%emt 0:05:07]} g6 {[%emt 0:08:22]} 16. e4 {[%emt 0:14:10]} (16. Na4 $11 {keeps the balance.}) 16... Nh5 $17 {[%emt 0:21:44]} 17. Qe3 {[%emt 0:06:43]} f5 {[%emt 0:09:33]} 18. Ne2 {[%emt 0:06:04] Inhibits f4.} Be7 {[%emt 0:12:09]} 19. Be5 {[%emt 0:05:45]} (19. exf5 $15 exf5 20. Be5 (20. Qe6+ Kg7 $17)) 19... Bg5 $1 $19 {[%emt 0:03:00]} 20. f4 {[%emt 0:03:09]} fxe4 {[%emt 0:00:03]} 21. Bxe4 {[%emt 0:02:09]} Nc4 {[%emt 0:00:59]} 22. Qb3 {[%emt 0:01:04]} Nxe5 {[%emt 0:08:07]} 23. fxg5 {[%emt 0:06:08]} Qxg5+ {[%emt 0:03:04]} (23... dxe4 24. dxe5 Qxg5+ 25. Ng3) 24. Bg2 {[%emt 0:01:07]} Ng4 {[%emt 0:00:47]} 25. h3 {[%emt 0:00:57]} Nh6 {[%emt 0:05:50]} 26. Qxb7 {[%emt 0:00:39]} Nf5 {[%emt 0:00:37]} 27. f4 {[%emt 0:02:15]} Qf6 {[%emt 0:00:58]} 28. Rd2 {[%emt 0:01:05]} (28. Qb3 $142) 28... Ne3 {[%emt 0:01:16] Pair of Knights!} (28... g5 $19 {And now ...Ne3 would win.} 29. Qxa6 Ne3) 29. Rf3 $2 {[%emt 0:01:29] [#]} (29. Rf2 $17 {was the only chance.}) 29... Nc4 {[%emt 0:00:19]} (29... Qh4 $1 $19 {is more deadly.} 30. Rf2 (30. Rxe3 Qe1+) 30... Ng3) 30. Rc2 $17 {[%emt 0:03:49]} Qf5 {[%emt 0:00:01]} ({Better is} 30... Ng7 31. Rf2 Qh4) 31. Rcc3 {[%emt 0:06:28]} (31. Rc1 $17) 31... Rb8 $19 {[%emt 0:01:26]} 32. Qd7 {[%emt 0:06:00]} (32. Qc6 $142) 32... Nf6 {[%emt 0:00:17]} 33. Qc6 {[%emt 0:00:18]} Rxb2 {[%emt 0:00:12]} 34. Ng3 {[%emt 0:01:17]} Qb1+ {[%emt 0:00:10]} 35. Bf1 {[%emt 0:00:43]} Nd2 {[%emt 0:01:20]} 36. Rfe3 {[%emt 0:03:44]} Nxf1 {[%emt 0:00:59]} (36... Qxa2 $2 37. Rxe6 Reb8 38. Rxf6 $18) 37. Nxf1 {[%emt 0:00:05]} Kf7 {[%emt 0:01:05]} (37... Rxa2 38. Rxe6 Qb2 39. Rxe8+ $11) (37... Qd1 $2 38. Rcd3 Qc2 39. Qxc2 Rxc2 40. Rd2 $19) 38. Qd6 {[%emt 0:01:03]} (38. Rc1 $2 Qxa2 39. Rf3 Rg2+ 40. Kh1 Rf2 $19) 38... Rb7 {[%emt 0:00:45] ...Ne4 is the strong threat.} (38... Rxa2 $2 39. Rc7+ Kg8 40. Rxe6 $18) 39. Rb3 {[%emt 0:00:23] [#]} Rxb3 $40 {[%emt 0:00:29][%mdl 128] Black is up to no good.} (39... Ne4 $1 $17 40. Qe5 Rxb3 41. Rxb3 Qc2 42. Rb7+ Re7 43. Rxe7+ Kxe7 44. Qg7+ Kd6 45. Qf8+ Kc7 46. Qf7+ Kb6 47. Qxe6+ Qc6) 40. Rxb3 $15 {[%emt 0:00:00]} Qc1 {[%emt 0:00:00] White must now prevent ...Re7.} (40... Qxa2 {leads to mate.} 41. Rb7+ Kg8 42. Qc7) 41. Rb7+ {[%emt 0:11:59]} Kg8 {[%emt 0:00:39]} 42. Rc7 {[%emt 0:04:37]} Qe1 {[%emt 0:06:01] Threatens to win with ...Ne4.} 43. Qe5 {[%emt 0:06:21]} Qxe5 {[%emt 0:01:51]} 44. fxe5 $17 {[%emt 0:00:07][%mdl 4096] Endgame KRN-KRN} Ne4 {[%emt 0:00:10]} 45. Nh2 {[%emt 0:06:16]} (45. Ra7 $17 {keeps fighting.}) 45... h5 {[%emt 0:02:12][%cal Bh7h5,Bh5g4,Bg4g3][%mdl 32]} 46. Nf3 {[%emt 0:01:08] [#]} (46. Rc6 $17) 46... g5 $1 $19 {[%emt 0:02:35]} 47. Kg2 {[%emt 0:00:51]} Rb8 {[%emt 0:02:57]} 48. Re7 {[%emt 0:00:28]} Rb2+ {[%emt 0:01:31]} 49. Kg1 {[%emt 0:00:06]} g4 {[%emt 0:04:40]} 50. hxg4 {[%emt 0:01:03]} hxg4 {[%emt 0:00:02]} 51. Nh2 {[%emt 0:00:53]} g3 {[%emt 0:00:40]} ({Weaker is} 51... Rxa2 52. Nxg4 Ng5 53. Kf1) 52. Nf1 {[%emt 0:00:36]} Rb6 {[%emt 0:04:28]} ({Not} 52... Ng5 53. Nxg3 Kf8 54. Ra7) 53. a4 {[%emt 0:02:01]} (53. Rc7 {might work better.}) 53... a5 {[%emt 0:00:01]} 54. Ra7 {[%emt 0:00:41]} Rb1 {[%emt 0:03:08]} 55. Kg2 {[%emt 0:00:23]} Rb2+ {[%emt 0:00:01]} 56. Kg1 {[%emt 0:00:08][%cal Of1g3]} Re2 $2 {[%emt 0:00:54]} ({Black should play} 56... Rb4 $19 57. Kg2 Rxd4 58. Nxg3 Rd2+ 59. Kg1 Nxg3 60. Rg7+ Kf8 61. Rg8+ Kf7 62. Rg7+ Ke8 63. Re7+ Kf8 64. Rf7+ Ke8 65. Re7+ Kd8 66. Rd7+ Kc8 67. Rc7+ Kxc7) 57. Nxg3 $1 $11 {[%emt 0:01:29] The position is equal.} Re1+ {[%emt 0:05:15]} 58. Kg2 {[%emt 0:00:33]} Nxg3 {[%emt 0:00:04]} 59. Kxg3 {[%emt 0:00:06] Strongly threatening Kg4. KR-KR} Re4 {[%emt 0:00:11]} 60. Re7 {[%emt 0:00:25]} Rxd4 {[%emt 0:00:15]} 61. Rxe6 {[%emt 0:00:16]} Rxa4 {[%emt 0:00:12]} 62. Rd6 {[%emt 0:01:11]} Rd4 {[%emt 0:00:29]} 63. Rd7 {[%emt 0:00:55]} Kf8 {[%emt 0:00:34]} 64. e6 {[%emt 0:00:34]} a4 {[%emt 0:00:25]} 65. Kf3 {[%emt 0:01:08]} Ke8 {[%emt 0:01:09]} 66. Ke3 {[%emt 0:01:01]} Rd1 {[%emt 0:02:21]} 67. Ke2 {[%emt 0:00:21]} Rd4 {[%emt 0:00:51]} 68. Ke3 {[%emt 0:00:17]} Rd1 {[%emt 0:00:30]} 69. Ke2 {[%emt 0:00:06]} Ra1 {[%emt 0:00:05]} 70. Kd2 {[%emt 0:01:27]} a3 {[%emt 0:00:40]} 71. Kc2 {[%emt 0:00:12]} Re1 {[%emt 0:00:48]} 72. Kb3 {[%emt 0:00:20]} Rxe6 {[%emt 0:00:31]} 73. Rxd5 {[%emt 0:00:11]} Ra6 {[%emt 0:00:06] ( -> ...a2)} 74. Ka2 {[%emt 0:00:05] White happily takes the draw.  Weighted Error Value: White=0.31/Black=0.29 (precise)} 1/2-1/2

[Event "Croatian 1A League 2022"]
[Site "Porec"]
[Date "2022.09.27"]
[Round "4.17"]
[White "Rogic, Davor"]
[Black "Zelcic, Robert"]
[Result "1/2-1/2"]
[ECO "B18"]
[WhiteElo "2458"]
[BlackElo "2495"]
[Annotator "TA"]
[PlyCount "64"]
[EventDate "2022.09.24"]
[EventType "team-tourn"]
[EventCountry "CRO"]
[SourceTitle "playchess.com"]
[Source "ChessBase"]
[SourceQuality "1"]
[TimeControl "40/5400+30:1800+30"]

{[%evp 12,64,0,0,20,-25,18,-3,-4,-16,-11,-19,0,-35,-31,-62,-20,-62,0,0,0,0,0,-79,-22,-20,0,-25,0,0,0,0,0,0,0,0,-7,-9,-29,-16,0,0,0,-37,-32,-36,0,0,160,160,187,200,200,0,34]} 1. e4 {[%emt 0:00:17]} c6 {[%emt 0:00:04]} 2. d4 {[%emt 0:00:37]} d5 {[%emt 0:00:04]} 3. Nd2 {[%emt 0:00:32]} dxe4 {[%emt 0:00:07]} 4. Nxe4 {[%emt 0:00:07]} Bf5 {[%emt 0:00:04]} 5. Ng3 {[%emt 0:00:27]} Bg6 {[%emt 0:00:06]} 6. Nh3 {[%emt 0:00:45]} Nf6 $1 {[%emt 0:02:43][%mdl 4] now scores much better than the old 6...e6.} 7. Nf4 {[%emt 0:01:09]} Nbd7 {[%emt 0:00:10] B18: Classical Caro-Kann: 4...Bf5 sidelines.} 8. Be2 {[%emt 0:08:42]} e6 {[%emt 0:11:38]} 9. h4 {[%emt 0:28:22]} Bd6 {[%emt 0:05:12] [#]} 10. h5 $146 {[%emt 0:02:34]} ({Predecessor:} 10. Be3 Qc7 11. Qc1 Bxc2 12. Ngh5 Nxh5 13. Nxh5 Be4 14. O-O O-O-O 15. a4 g6 16. Nf4 {½-½ (30) Beaudoin,S (2156)-Laflamme,S (1955) Charlesbourg 2014}) 10... Bf5 {[%emt 0:01:27]} 11. Nxf5 {[%emt 0:04:09]} exf5 {[%emt 0:00:24]} 12. Qd3 {[%emt 0:04:39]} Ne4 {[%emt 0:03:18]} 13. Be3 {[%emt 0:08:20]} Qc7 {[%emt 0:02:33]} 14. g3 {[%emt 0:00:27]} O-O-O {[%emt 0:05:12]} ({Better is} 14... h6 $15) 15. O-O-O $11 {[%emt 0:01:57]} Rhe8 {[%emt 0:02:30]} 16. Kb1 {[%emt 0:06:32]} Ndf6 {[%emt 0:01:58]} 17. Qb3 {[%emt 0:02:40]} (17. c4 $11 {keeps the balance.}) 17... Re7 {[%emt 0:15:05]} (17... Qb6 $17 {White must now prevent ...Qxb3.} 18. Bf3 Qxb3 19. axb3 Bxf4 20. gxf4 Ng4 21. Bxe4 Rxe4) 18. Bf3 {[%emt 0:02:38]} Rde8 {[%emt 0:03:12][%cal Oe4g3]} 19. Rd3 {[%emt 0:01:01]} Qa5 {[%emt 0:01:34]} 20. c4 {[%emt 0:04:23]} Bxf4 {[%emt 0:05:31]} 21. gxf4 {[%emt 0:00:05]} Ng4 {[%emt 0:00:11]} 22. Bxg4 {[%emt 0:03:09]} fxg4 {[%emt 0:00:06]} 23. d5 {[%emt 0:00:54]} c5 {[%emt 0:04:13]} 24. f5 {[%emt 0:01:52]} Nd6 {[%emt 0:03:30]} 25. h6 {[%emt 0:01:50]} g6 {[%emt 0:08:37]} 26. fxg6 {[%emt 0:00:04]} fxg6 {[%emt 0:00:04]} 27. Rg1 {[%emt 0:01:53]} Re4 {[%emt 0:00:13]} 28. Rc3 {[%emt 0:00:23]} Qc7 {[%emt 0:09:50]} 29. Qd1 $1 {[%emt 0:02:15]} Nxc4 $2 {[%emt 0:04:47]} (29... Nf5 $11) 30. Qc1 $1 $16 {[%emt 0:00:52]} Qh2 {[%emt 0:04:56] [#]} 31. Rh1 $1 {[%emt 0:04:39][%mdl 1024] White has strong compensation.} Qg2 {[%emt 0:00:06]} 32. Rg1 $2 {[%emt 0:00:14]} ({Only move:} 32. Bxc5 $18 {Threatens to win with Rd1.} Qxh1 33. Qxh1 Re1+ {[#]} 34. Qxe1 $1 Rxe1+ 35. Kc2) 32... Qh2 {[%emt 0:00:04] Weighted Error Value: White=0.23 (precise) /Black=0.27 (precise)} 1/2-1/2

[Event "Croatian 1A League 2022"]
[Site "Porec"]
[Date "2022.09.27"]
[Round "4.18"]
[White "Jankovic, Alojzije"]
[Black "Cvitan, Ognjen"]
[Result "1/2-1/2"]
[WhiteElo "2548"]
[BlackElo "2445"]
[Annotator "TA"]
[PlyCount "16"]
[EventDate "2022.09.24"]
[EventType "team-tourn"]
[EventCountry "CRO"]
[SourceTitle "playchess.com"]
[Source "ChessBase"]
[SourceQuality "1"]
[TimeControl "40/5400+30:1800+30"]

{[%evp 11,16,8,7,-20,0,-32,-45]} 1. d4 {[%emt 0:02:39]} Nf6 {[%emt 0:00:59]} 2. c4 {[%emt 0:01:03]} e6 {[%emt 0:00:48]} 3. Nf3 {[%emt 0:00:23]} d5 {[%emt 0:01:44]} 4. e3 {[%emt 0:00:41]} Be7 {[%emt 0:03:43]} 5. Bd3 {[%emt 0:01:15]} O-O {[%emt 0:00:29]} 6. Nbd2 {[%emt 0:03:34]} c5 {[%emt 0:04:42][%cal Ob7b5]} 7. dxc5 {[%emt 0:02:22] D30: Queen's Gambit Declined: Systems without Nc3.} Na6 {[%emt 0:01:26] [#]} 8. Qe2 $146 {[%emt 0:07:39]} ({Predecessor:} 8. O-O Nxc5 9. Be2 b6 10. b3 Bb7 11. Bb2 Rc8 12. Rc1 h6 13. Ne5 Qd6 14. cxd5 Nxd5 {0-1 (34) Margvelashvili,G (2523)-Karjakin,S (2752) Chess.com INT 2020}) 8... Nxc5 {[%emt 0:00:21] Weighted Error Value: White=0.30/Black=0.10 (very precise)} 1/2-1/2

[Event "Croatian 1A League 2022"]
[Site "Porec"]
[Date "2022.09.27"]
[Round "4.19"]
[White "Shevchenko, Kirill"]
[Black "Kadric, Denis"]
[Result "0-1"]
[ECO "E95"]
[WhiteElo "2645"]
[BlackElo "2561"]
[Annotator "TA"]
[PlyCount "76"]
[EventDate "2022.09.24"]
[EventType "team-tourn"]
[EventCountry "CRO"]
[SourceTitle "playchess.com"]
[Source "ChessBase"]
[SourceQuality "1"]
[TimeControl "40/5400+30:1800+30"]

{[%evp 15,76,34,40,59,72,68,92,91,104,86,86,84,83,66,61,66,83,81,77,75,81,75,101,81,84,82,120,73,66,71,65,18,73,42,42,34,33,-197,-199,-196,0,0,0,-199,-206,-298,-306,-1144,-1119,-29964,-692,-29962,-29958,-6187,-4371,-29969,-29970,-29957,-29952,-6091,-5389,-1169,-1068]} 1. d4 {[%emt 0:00:03]} Nf6 {[%emt 0:00:06]} 2. c4 {[%emt 0:00:05]} d6 {[%emt 0:00:03]} 3. Nf3 {[%emt 0:00:47]} g6 {[%emt 0:00:07]} 4. Nc3 {[%emt 0:00:03]} Bg7 {[%emt 0:00:04]} 5. e4 {[%emt 0:00:04]} O-O {[%emt 0:00:04]} 6. Be2 {[%emt 0:00:03]} e5 {[%emt 0:00:03]} 7. O-O {[%emt 0:00:05]} h6 {[%emt 0:00:08]} 8. Re1 {[%emt 0:01:21]} Nbd7 {[%emt 0:00:08]} 9. Qc2 {[%emt 0:07:24] E95: King's Indian: Classical: 7...Nbd7 8 Re1.} c6 {[%emt 0:03:19] [#] 9...Re8 is a critical line.} 10. d5 $146 {[%emt 0:10:22]} ({Predecessor:} 10. Bf1 Qe7 11. d5 cxd5 12. cxd5 a6 13. Nd2 Nh7 14. Nc4 b5 15. Na5 f5 16. a4 bxa4 17. Rxa4 {½-½ (30) Grigore,G (2526)-Sergeev,V (2452) Cappelle la Grande 1999}) 10... c5 {[%emt 0:00:52]} 11. Be3 {[%emt 0:01:46] White is better.} Kh8 {[%emt 0:01:34]} 12. g3 {[%emt 0:11:51]} Ng8 {[%emt 0:01:58]} 13. Nh4 {[%emt 0:03:31]} Ndf6 {[%emt 0:00:12][%cal Bd7f6,Bf6h7,Bh7g5][%mdl 32]} 14. Rab1 {[%emt 0:08:21]} b6 {[%emt 0:01:59]} 15. f3 {[%emt 0:10:34]} h5 {[%emt 0:01:33]} 16. Qd2 {[%emt 0:04:58]} Nh7 {[%emt 0:05:15]} 17. Ng2 {[%emt 0:04:31]} Bf6 {[%emt 0:02:41]} 18. Rf1 {[%emt 0:02:10]} Ng5 {[%emt 0:17:12]} 19. f4 {[%emt 0:06:26]} Nh7 {[%emt 0:03:38]} 20. f5 {[%emt 0:02:57]} Ne7 {[%emt 0:03:35]} 21. fxg6 {[%emt 0:07:33]} (21. Kh1 $142) 21... fxg6 $16 {[%emt 0:00:05]} 22. Bh6 {[%emt 0:00:05]} Rf7 {[%emt 0:05:55]} 23. Rf2 {[%emt 0:02:18]} (23. a3 $14 {might be stronger.}) 23... Bh3 {[%emt 0:01:25]} (23... Ng8 $11 {keeps the balance.}) 24. Nh4 {[%emt 0:03:35]} Qg8 {[%emt 0:08:41]} 25. Be3 {[%emt 0:06:32]} Raf8 {[%emt 0:07:58]} 26. Nb5 $2 {[%emt 0:03:25]} (26. Kh1 $14 {keeps the upper hand.}) 26... Bxh4 $19 {[%emt 0:04:52]} 27. Rxf7 {[%emt 0:01:19]} Rxf7 {[%emt 0:00:03]} (27... Qxf7 $19 28. gxh4 g5) 28. gxh4 $11 {[%emt 0:00:05]} g5 {[%emt 0:00:07]} 29. Kh1 $2 {[%emt 0:01:37]} (29. Bxh5 $11 {and White stays safe.} gxh4+ 30. Kh1) 29... Qg6 $19 {[%emt 0:00:11]} 30. Qd3 {[%emt 0:00:50] [#]} (30. Nxd6 {keeps fighting.} Qxd6 31. Bxh5) 30... Nf5 $1 {[%emt 0:13:31][%cal Be7f5,Bf5h4,Bh4f3][%mdl 544]} 31. Bxg5 $2 {[%emt 0:00:43] [#]} ({Wrong is} 31. exf5 $2 Bxf5 32. Nxd6 Bxd3 $19) (31. Bf1 Bg4 32. Be2 (32. exf5 $2 Bxf5 33. Qxf5 Qxf5 $19) 32... Bxe2 33. Qxe2 Nxh4 34. Nc3) (31. Rg1 Nxh4) 31... Nxh4 $1 {[%emt 0:01:33][%mdl 512]} 32. Nxd6 {[%emt 0:00:26]} (32. Rg1 Nxg5) 32... Bg2+ {[%emt 0:00:56]} 33. Kg1 {[%emt 0:00:00]} Nxg5 {[%emt 0:00:07]} 34. Nxf7+ {[%emt 0:00:47]} Qxf7 {[%emt 0:00:04]} 35. Rf1 {[%emt 0:00:46]} Bxf1 {[%emt 0:00:12]} 36. Bxf1 {[%emt 0:00:04]} Nhf3+ {[%emt 0:00:21]} 37. Kh1 {[%emt 0:00:11]} Qf4 {[%emt 0:00:10][%csl Gf3,LRe4,LRh2][%cal Rf4h2]} 38. Qe2 {[%emt 0:00:15]} Nxe4 {[%emt 0:00:20] Weighted Error Value: White=0.82/Black=0.15 (very precise)} 0-1